bitfinex/quotes_ETHUSD_20220215
["timestamp","ask_amount","ask_price","bid_price","bid_amount"]
[1644936975971,9.36951189,3121.1,3121.0,8.62e-05]
[1644936976172,8.00838433,3121.1,3121.0,8.62e-05]
[1644936976374,9.36952147,3121.1,3121.0,8.62e-05]
[1644936976572,4.40211819,3121.1,3121.0,8.62e-05]
[1644936976972,3.40211819,3121.1,3121.0,8.62e-05]
[1644936979015,3.40324416,3121.1,3120.4,0.00521388]
[1644936979316,1.60212,3121.0,3120.3,0.00728391]
[1644936979514,1.60212,3121.0,3120.3,0.01249779]
[1644936979515,0.3,3120.9,3120.3,0.01249779]
[1644936979915,3.39865043,3120.8,3120.3,0.57326459]
[1644936980121,3.40092263,3120.8,3120.3,0.01249779]
[1644936980316,3.40092263,3120.8,3120.3,0.00728391]
[1644936980317,2.40342,3120.7,3120.3,0.00728391]
[1644936980516,0.80117,3120.6,3120.3,0.00728391]
[1644936980716,0.80117,3120.6,3120.3,8.391e-05]
[1644936980921,3.39865043,3120.4,3120.3,8.391e-05]
[1644936982168,6.96181812,3120.4,3120.3,8.391e-05]
[1644936982370,7.96181812,3120.4,3120.3,8.391e-05]
[1644936982569,8.99661527,3120.4,3120.3,8.391e-05]
[1644936982968,3.39865043,3120.4,3120.3,8.391e-05]
[1644936983169,0.80117,3120.6,3120.3,8.391e-05]
[1644936983568,3.39865043,3120.5,3120.3,8.391e-05]
[1644936983770,0.80117,3120.6,3120.3,8.391e-05]
[1644936984269,3.39865043,3120.4,3120.3,0.00730738]
[1644936985714,0.80663967,3120.6,3120.3,0.00730738]
[1644936986116,0.80663967,3120.6,3120.4,0.5607703]
[1644936986313,0.80663967,3120.6,3120.4,0.56598418]
[1644936986528,0.80663967,3120.6,3120.4,0.00521388]
[1644936986715,0.80663967,3120.6,3120.3,0.00730738]
[1644936988717,0.80663967,3120.6,3120.4,0.07298604]
[1644936988918,0.80117,3120.6,3120.4,0.07298604]
[1644936990267,0.483686,3120.6,3120.4,0.07298604]
[1644936990468,3.39865043,3120.5,3120.4,0.07298604]
[1644936991063,0.483686,3120.6,3120.4,0.07298604]
[1644936992264,0.483686,3120.6,3120.4,0.07819992]
[1644936993119,0.483686,3120.6,3120.4,0.87926992]
[1644936993616,0.0022722,3120.7,3120.4,20.98075052]
[1644936993818,0.0022722,3120.7,3120.5,0.5606534]
[1644936994018,0.0022722,3120.7,3120.6,18.98]
[1644936994218,0.0022722,3120.7,3120.6,0.37298604]
[1644936994417,1.6019,3121.0,3120.6,0.37298604]
[1644936994817,0.0022722,3120.8,3120.6,0.37298604]
[1644936995016,0.0022722,3120.8,3120.7,0.5606859]
[1644936995617,1.60199,3120.9,3120.7,0.5606859]
[1644936995820,1.6042622,3120.9,3120.7,0.5606859]
[1644936996017,1.6042622,3120.9,3120.7,1.3616759]
[1644936996557,1.6042622,3120.9,3120.7,0.5606859]
[1644936996858,2.40304,3120.9,3120.7,0.5606859]
[1644936997161,3.39865043,3120.8,3120.5,0.5607918]
[1644936997360,3.39865043,3120.8,3120.4,0.00521388]
[1644936997361,0.80117,3120.7,3120.3,0.00730738]
[1644936997558,0.80117,3120.7,3120.6,0.07298604]
[1644936997757,4.19982043,3120.7,3120.6,0.07298604]
[1644936999059,5.36319857,3120.7,3120.6,0.07298604]
[1644937000060,10.5400375,3120.7,3120.4,0.00521388]
[1644937000319,3.39865043,3120.5,3120.1,0.00257945]
[1644937000618,3.39865043,3120.2,3119.6,0.00521388]
[1644937000817,3.39865043,3120.2,3120.1,0.00257942]
[1644937001617,3.39865043,3120.2,3119.3,18.68521388]
[1644937001819,1.60272,3120.3,3120.0,1.1216151]
[1644937002020,3.39865043,3120.2,3120.1,0.00521388]
[1644937002219,1.60272,3120.3,3120.1,0.00521388]
[1644937002718,1.60227,3120.5,3120.1,0.00521388]
[1644937003119,1.60227,3120.5,3120.1,0.56599508]
[1644937003317,1.60227,3120.5,3120.2,0.00521388]
[1644937003522,0.80108,3120.3,3120.2,0.00521388]
[1644937005562,0.00546004,3120.4,3120.2,0.00521388]
[1644937006864,0.85868906,3120.3,3120.2,0.00521388]
[1644937007664,0.85868906,3120.3,3119.9,0.30521388]
[1644937007914,0.85868906,3120.3,3120.1,0.00257938]
[1644937007915,1.65994906,3120.3,3120.1,0.00257938]
[1644937008111,1.65994906,3120.3,3120.1,0.00779326]
[1644937008912,1.66540428,3120.3,3120.1,0.0120519]
[1644937009713,5.06405471,3120.3,3120.1,0.0120519]
[1644937009913,5.06405471,3120.3,3120.1,0.00683802]
[1644937010114,5.06405471,3120.3,3120.1,0.0120519]
[1644937010714,5.06405471,3120.3,3120.1,0.00683802]
[1644937011962,0.00545522,3120.3,3120.1,0.80800802]
[1644937012168,0.00545522,3120.3,3120.2,0.16242308]
[1644937012562,0.00545522,3120.3,3120.2,0.16763696]
[1644937012964,0.00545522,3120.3,3120.2,0.00521388]
[1644937013364,3.40410565,3120.3,3120.2,0.00521388]
[1644937013564,0.00545522,3120.3,3120.2,0.00521388]
[1644937014367,4.48611702,3120.3,3120.2,0.00521388]
[1644937014566,4.48611702,3120.3,3120.1,0.00941741]
[1644937014962,4.48611702,3120.3,3120.1,0.00683802]
[1644937015612,1.08746659,3120.3,3120.1,0.00683802]
[1644937015814,1.08746659,3120.3,3120.1,0.30683802]
[1644937015815,0.00545522,3120.3,3120.1,0.30683802]
[1644937016015,0.00545522,3120.3,3120.1,0.5523919]
[1644937016215,0.00545522,3120.3,3120.1,19.5323919]
[1644937016414,0.00545522,3120.3,3120.1,1.8523919]
[1644937016815,0.00545522,3120.3,3120.1,3.3356781]
[1644937017616,0.00545522,3120.3,3120.1,0.8132419]
[1644937018216,0.00545522,3120.3,3120.1,1.9348599]
[1644937018916,0.00545522,3120.3,3120.1,2.1752099]
[1644937019171,0.00545522,3120.3,3120.1,1.9348599]
[1644937019366,0.00545522,3120.3,3120.2,0.6]
[1644937019768,0.00545522,3120.3,3120.1,2.1752099]
[1644937020067,0.00545522,3120.3,3120.2,0.6]
[1644937020268,0.00545522,3120.3,3120.2,0.3]
[1644937020569,0.00545522,3120.3,3120.1,0.01463128]
[1644937020967,0.00545522,3120.3,3120.1,0.0120519]
[1644937021567,0.00545522,3120.3,3120.1,0.8132719]
[1644937021770,0.00545522,3120.3,3120.1,1.3741462]
[1644937022067,0.00545522,3120.3,3120.1,1.6144962]
[1644937022667,0.00545522,3120.3,3120.2,0.6]
[1644937023313,0.0040589,3120.3,3120.2,0.6]
[1644937023912,0.00176533,3120.7,3120.4,1.3617793]
[1644937024114,0.00176533,3120.7,3120.4,0.5607293]
[1644937024513,1.36100358,3121.0,3120.4,0.5607293]
[1644937024816,0.00176547,3120.7,3120.5,0.3]
[1644937025013,0.00176547,3120.7,3120.6,1.60199]
[1644937025815,0.128269,3120.8,3120.6,1.60199]
[1644937026014,0.00187848,3120.8,3120.6,1.60199]
[1644937026674,0.00187848,3120.8,3120.6,2.1627064]
[1644937027077,0.80526567,3121.1,3120.7,0.80105]
[1644937027275,0.00187848,3120.9,3120.7,1.9225017]
[1644937028277,5.18006843,3121.1,3120.8,0.80104]
[1644937028478,0.00187848,3121.0,3120.8,0.80104]
[1644937028875,0.80290848,3121.0,3120.8,0.80104]
[1644937029278,0.80290848,3121.0,3120.8,1.10104]
[1644937029279,0.00187848,3121.0,3120.8,1.10104]
[1644937029481,3.39865043,3121.3,3121.0,0.80092]
[1644937029679,0.00185322,3121.1,3121.0,0.80092]
[1644937030317,0.00185322,3121.1,3121.0,1.6615446]
[1644937030519,3.92938432,3121.8,3121.0,1.6615446]
[1644937030717,3.92938432,3121.8,3121.0,0.5606246]
[1644937030718,3.39865043,3121.1,3121.0,0.5606246]
[1644937031319,0.00185322,3121.2,3121.0,0.5606246]
[1644937031716,1.15548432,3121.8,3121.0,19.5406246]
[1644937031717,1.36050735,3121.7,3121.0,19.5406246]
[1644937031917,1.36050735,3121.7,3121.2,0.80081]
[1644937032122,0.00185322,3121.3,3121.2,0.80081]
[1644937032319,0.00185322,3121.3,3121.2,1.10081]
[1644937032718,0.00185322,3121.3,3121.2,1.4211393]
[1644937032918,1.36050735,3121.7,3121.2,1.1211393]
[1644937033118,1.36050735,3121.7,3121.3,0.80081]
[1644937033320,0.00185881,3121.4,3121.3,19.48081]
[1644937034168,1.36043013,3121.8,3121.3,19.48081]
[1644937034368,1.36043013,3121.8,3121.3,19.78081]
[1644937034569,0.00185881,3121.5,3121.4,20.28143]
[1644937034776,0.00185881,3121.5,3121.4,1.60143]
[1644937035071,0.00185881,3121.5,3121.4,1.90143]
[1644937035376,1.9722965,3122.2,3121.4,1.90143]
[1644937035377,3.39865043,3121.7,3121.4,1.90143]
[1644937035569,3.39865043,3121.7,3121.3,0.5605363]
[1644937035770,3.39865043,3121.5,3121.3,0.8605363]
[1644937036573,0.00185881,3121.6,3121.3,0.5605363]
[1644937036574,3.39865043,3121.4,3121.3,0.5605363]
[1644937036774,3.39865043,3121.4,3121.0,0.00607636]
[1644937036775,6.78373535,3121.4,3121.0,0.00607636]
[1644937036972,3.39865043,3121.1,3121.0,0.00607636]
[1644937038218,0.96008154,3121.2,3121.0,0.00607636]
[1644937038916,3.39865043,3121.1,3121.0,0.00607636]
[1644937039117,3.39865043,3121.1,3120.8,0.00607983]
[1644937039318,0.95822404,3121.2,3120.8,0.00607983]
[1644937039919,0.95822404,3121.2,3121.0,0.5606729]
[1644937040317,0.95822404,3121.2,3121.0,0.5106729]
[1644937040518,0.96008186,3121.2,3121.0,0.5106729]
[1644937041421,0.95822404,3121.2,3121.0,0.5106729]
[1644937041664,0.95822404,3121.2,3121.0,1.3116029]
[1644937042065,0.95822404,3121.2,3121.0,0.5106729]
[1644937042262,0.95822404,3121.2,3120.8,0.00607983]
[1644937042662,3.39865043,3121.1,3120.8,0.00607983]
[1644937043263,0.95822404,3121.2,3120.8,0.00607983]
[1644937043464,0.95822404,3121.2,3120.9,0.80094]
[1644937043865,0.95822404,3121.2,3121.1,0.00607484]
[1644937044067,3.39865043,3121.5,3121.1,0.00607484]
[1644937044468,7.5671,3121.7,3121.2,0.560639]
[1644937044667,1.2045,3121.8,3121.3,0.80076]
[1644937044867,0.128243,3121.6,3121.3,0.80076]
[1644937045316,0.128243,3121.6,3121.1,0.00450926]
[1644937045516,3.52689343,3121.6,3121.1,0.56514606]
[1644937045718,3.39865043,3121.6,3121.2,0.3]
[1644937046021,0.80279775,3121.7,3121.2,0.3]
[1644937046219,0.80094,3121.7,3121.1,0.00450926]
[1644937046418,0.97800381,3121.8,3121.1,0.56515156]
[1644937046618,0.00185775,3121.6,3121.1,0.00450926]
[1644937047021,0.00185775,3121.6,3121.2,0.80087]
[1644937047220,3.39865043,3121.4,3121.1,0.00450926]
[1644937048022,3.40065431,3121.6,3121.2,1.3615079]
[1644937048320,3.40065431,3121.6,3121.2,0.5606279]
[1644937048321,0.00200388,3121.6,3121.2,0.5606279]
[1644937048720,4.42300804,3121.3,3121.1,0.00450926]
[1644937048922,4.42300804,3121.3,3120.2,0.24031]
[1644937049168,1.02435761,3121.3,3120.9,0.5606799]
[1644937049370,3.39865043,3121.0,3120.9,0.5606799]
[1644937049568,1.02435761,3121.3,3120.9,0.5606799]
[1644937049767,3.39865043,3121.0,3120.9,0.5606799]
[1644937050173,3.39865043,3121.0,3120.7,0.5607129]
[1644937050368,3.39865043,3120.8,3120.7,0.5607129]
[1644937050570,3.39865043,3120.8,3120.1,0.55273511]
[1644937050770,0.00200388,3121.1,3120.1,0.00273511]
[1644937050771,3.39865043,3120.5,3120.1,0.00273511]
[1644937051170,4.18757735,3121.1,3119.3,6.95714312]
[1644937051171,0.80122,3120.8,3119.7,0.24558388]
[1644937051370,0.80122,3120.8,3119.8,0.00521388]
[1644937051371,3.39865043,3120.4,3119.8,0.00521388]
[1644937051571,3.39865043,3120.4,3120.1,0.00268138]
[1644937051572,0.87207882,3120.3,3120.1,0.00268138]
[1644937052371,0.87207882,3120.3,3120.0,0.00521388]
[1644937052569,0.87207882,3120.3,3120.0,0.00789528]
[1644937052818,3.52693543,3120.4,3120.0,0.86869398]
[1644937053015,3.39865043,3120.4,3120.1,0.3]
[1644937053215,1.21272496,3120.7,3120.2,0.80109]
[1644937053416,20.17385043,3121.2,3120.2,19.78109]
[1644937053616,13.6092,3121.2,3120.2,19.78109]
[1644937053818,0.00182499,3120.7,3120.4,0.5606845]
[1644937054016,0.00182499,3120.7,3120.5,0.2403]
[1644937054217,3.40047542,3120.7,3120.2,0.76242308]
[1644937054816,1.0537151,3120.8,3120.2,0.76242308]
[1644937055017,0.00186507,3120.7,3120.2,0.76242308]
[1644937055216,3.39865043,3120.5,3120.2,0.6]
[1644937055419,3.39865043,3120.5,3120.2,0.3]
[1644937055819,3.39865043,3120.7,3120.3,1.3619192]
[1644937056017,1.0537151,3120.8,3120.3,1.3619192]
[1644937056220,0.00186501,3120.7,3120.3,1.3619192]
[1644937056421,0.00186501,3120.7,3120.3,0.8607992]
[1644937056674,0.00186501,3120.7,3120.4,18.84242308]
[1644937056875,0.00186501,3120.7,3120.6,19.48089]
[1644937057271,0.00445543,3120.8,3120.6,21.08089]
[1644937057471,0.0018651,3120.7,3120.6,21.24331308]
[1644937057874,6.51e-05,3120.7,3120.6,22.04419518]
[1644937058079,0.00346801,3122.5,3120.6,22.04419518]
[1644937058080,1.2132,3122.2,3120.8,6.85]
[1644937058273,1.2132,3122.2,3121.4,0.80065]
[1644937058474,6.06476801,3122.6,3121.5,0.48039]
[1644937058475,3.39865043,3122.3,3121.5,0.48039]
[1644937058774,3.39865043,3121.7,3121.6,1.3611159]
[1644937058974,4.75910381,3121.7,3121.1,0.5605429]
[1644937059172,3.39865043,3121.2,3120.9,0.3]
[1644937059374,3.39865043,3121.2,3121.1,1.60168]
[1644937059572,1.2265,3122.1,3121.1,2.20168]
[1644937059573,3.39865043,3121.5,3121.1,2.20168]
[1644937059773,3.39865043,3121.8,3121.1,2.20168]
[1644937059973,3.39865043,3121.8,3121.3,0.5605823]
[1644937060174,1.2265,3122.1,3121.3,0.8605823]
[1644937060420,3.39865043,3121.5,3121.4,0.80074]
[1644937060816,3.39865043,3121.5,3121.4,1.10074]
[1644937061020,3.39865043,3121.5,3121.4,1.34096]
[1644937061319,3.39865043,3121.5,3121.4,1.04096]
[1644937061718,3.39865043,3121.5,3121.4,1.34096]
[1644937061918,3.39865043,3121.5,3121.4,1.10074]
[1644937062320,0.00226754,3121.6,3121.4,1.40074]
[1644937062519,0.00226754,3121.6,3121.5,1.84173]
[1644937062919,0.00226754,3121.6,3121.5,20.52173]
[1644937063122,4.59412472,3122.5,3121.5,20.52173]
[1644937063123,1.36019836,3122.4,3121.5,20.52173]
[1644937063319,0.00357429,3122.3,3121.7,18.68]
[1644937063521,3.39865043,3123.0,3121.9,18.68]
[1644937063721,4.0258,3123.2,3121.8,0.24018]
[1644937063722,4.0258,3123.2,3122.3,18.98]
[1644937063925,0.60054853,3123.7,3122.5,18.68]
[1644937063926,3.39865043,3123.3,3122.5,18.68]
[1644937064167,3.39865043,3123.3,3122.5,18.98]
[1644937064472,1.12226993,3122.8,3122.6,0.2401]
[1644937064766,1.12226993,3122.8,3122.7,1.6006119]
[1644937064966,0.00226754,3123.1,3122.7,1.34039]
[1644937065265,0.00226754,3123.1,3122.7,1.10029]
[1644937065670,3.39865043,3123.2,3122.7,1.10029]
[1644937065869,3.39865043,3123.2,3122.9,0.80037]
[1644937066067,3.39865043,3123.2,3122.9,1.8408356]
[1644937066870,3.39865043,3123.2,3122.9,1.3606156]
[1644937067916,0.94906883,3123.5,3123.0,0.3]
[1644937068119,1.2316,3123.8,3123.2,0.560187]
[1644937068326,13.8223,3124.2,3123.2,0.560187]
[1644937068327,0.128177,3123.3,3123.2,2.460707]
[1644937068517,0.128177,3123.3,3123.2,5.84144661]
[1644937068718,3.39865043,3123.9,3123.2,5.84144661]
[1644937068919,13.8223,3124.2,3123.2,2.460707]
[1644937068920,3.39865043,3123.7,3123.2,2.460707]
[1644937069119,13.8223,3124.2,3123.2,2.460707]
[1644937069120,6.4497,3124.2,3123.2,2.460707]
[1644937069319,1.12165126,3124.5,3123.2,2.460707]
[1644937069320,3.33765119,3123.5,3123.2,2.460707]
[1644937069521,1.72219979,3124.5,3123.4,18.68]
[1644937069522,0.00226754,3123.7,3123.4,18.68]
[1644937069719,0.00226754,3123.7,3123.6,18.68]
[1644937069919,0.00226754,3123.7,3123.6,19.065]
[1644937070126,3.61405113,3124.9,3123.6,19.065]
[1644937070127,3.33765119,3124.8,3123.6,19.065]
[1644937070319,69.54965369,3125.0,3123.6,19.22742308]
[1644937070523,3.33765119,3124.5,3124.0,18.68]
[1644937070723,3.33765119,3124.5,3124.0,20.58001]
[1644937071024,69.54965369,3125.0,3124.1,18.68]
[1644937071224,69.54965369,3125.0,3124.3,18.68]
[1644937071419,69.54965369,3125.0,3124.5,18.68]
[1644937071669,69.54965369,3125.0,3124.5,19.70962434]
[1644937071867,69.54965369,3125.0,3124.5,2.4796042]
[1644937072072,69.54965369,3125.0,3124.5,2.7796042]
[1644937072073,70.45094297,3125.0,3124.5,2.7796042]
[1644937072266,73.78859416,3125.0,3124.5,2.7796042]
[1644937072667,70.45094297,3125.0,3124.5,2.7796042]
[1644937072869,3.33765119,3124.7,3124.5,1.9797642]
[1644937073672,69.54965369,3125.0,3124.7,0.79984]
[1644937073868,69.54965369,3125.0,3124.8,0.5599233]
[1644937073869,3.33765119,3124.9,3124.8,0.5599233]
[1644937074070,3.34070021,3124.9,3124.8,0.5599233]
[1644937074271,3.34070021,3124.9,3124.8,0.8599233]
[1644937074674,0.00304902,3124.9,3124.8,0.8599233]
[1644937074869,0.00304902,3124.9,3124.8,23.0840742]
[1644937075068,0.00304902,3124.9,3124.8,19.70234638]
[1644937076126,0.00304902,3124.9,3124.8,1.02234638]
[1644937077127,0.00304902,3124.9,3124.8,0.8599233]
[1644937078429,3.34070021,3124.9,3124.8,0.5599233]
[1644937078834,3.34070021,3124.9,3124.1,0.24004]
[1644937078835,0.5424257,3124.3,3124.1,0.24004]
[1644937079063,3.88007689,3124.3,3124.0,0.48006]
[1644937079766,3.88007689,3124.3,3124.1,2.1600808]
[1644937079966,3.88007689,3124.3,3124.1,0.5600908]
[1644937080367,3.88363331,3124.3,3124.1,0.5600908]
[1644937080768,1.09630833,3124.2,3124.1,0.5600908]
[1644937080967,0.54598212,3124.3,3124.1,0.8001208]
[1644937081770,0.54598212,3124.3,3124.1,1.6001408]
[1644937082170,0.54598212,3124.3,3124.1,2.36256388]
[1644937082821,3.33765119,3124.2,3124.1,2.36256388]
[1644937083020,0.54598212,3124.3,3124.1,1.32251388]
[1644937083221,0.54598212,3124.3,3124.1,1.56254388]
[1644937084220,0.54598212,3124.3,3124.1,2.36260388]
[1644937084221,0.00301541,3124.2,3124.1,2.36260388]
[1644937084621,0.00301541,3124.2,3124.1,21.42760388]
[1644937084821,0.40272202,3124.3,3124.1,21.42760388]
[1644937085021,69.54965369,3125.0,3124.1,21.18757388]
[1644937085221,69.54965369,3125.0,3124.3,0.53997]
[1644937085420,69.54965369,3125.0,3124.4,0.385]
[1644937085620,69.54965369,3125.0,3124.5,18.68]
[1644937085821,72.88730488,3125.0,3124.6,0.385]
[1644937086021,72.88730488,3125.0,3124.6,0.685]
[1644937086422,0.00225056,3124.9,3124.6,0.685]
[1644937086676,0.00225056,3124.9,3124.6,0.92496]
[1644937086870,0.00225056,3124.9,3124.7,1.03981]
[1644937087171,0.00225056,3124.9,3124.7,1.42481]
[1644937087372,69.54965369,3125.0,3124.8,0.16242308]
[1644937087569,72.88955544,3125.0,3124.7,0.62496]
[1644937087772,72.88955544,3125.0,3124.7,0.385]
[1644937087972,3.33765119,3124.8,3124.7,0.385]
[1644937088172,3.33765119,3124.8,3124.7,2.3047277]
[1644937088372,69.68001925,3125.0,3124.7,2.3047277]
[1644937088573,69.67776869,3125.0,3124.8,0.3]
[1644937088872,0.00225056,3124.9,3124.8,0.3]
[1644937089279,0.00492265,3124.9,3124.8,0.3]
[1644937089572,0.00492265,3124.9,3124.8,23.09998264]
[1644937089773,0.00267209,3124.9,3124.8,23.64740572]
[1644937090172,0.00267209,3124.9,3124.8,1.40732458]
[1644937090425,0.00267209,3124.9,3124.8,1.2449015]
[1644937093524,0.00267209,3124.9,3124.8,0.8599015]
[1644937093722,0.00267209,3124.9,3124.8,0.86553744]
[1644937097822,0.00267209,3124.9,3124.8,1.59983]
[1644937098823,3.34032328,3124.9,3124.8,1.59983]
[1644937099024,3.34032328,3124.9,3124.8,2.16536172]
[1644937099224,3.34032328,3124.9,3124.8,2.46536172]
[1644937101126,0.00267209,3124.9,3124.8,2.46536172]
[1644937102173,3.34032328,3124.9,3124.8,2.46536172]
[1644937102970,0.00267209,3124.9,3124.8,2.46536172]
[1644937104271,0.00267209,3124.9,3124.8,2.70533172]
[1644937104272,3.33765119,3124.9,3124.8,2.70533172]
[1644937106022,69.50811498,3125.0,3124.8,2.70533172]
[1644937106624,69.50586442,3125.0,3124.8,2.70533172]
[1644937106824,69.50586442,3125.0,3124.9,0.79985]
[1644937107230,69.50586442,3125.0,3124.9,20.47985]
[1644937107425,60.71734744,3125.0,3124.9,20.80669365]
[1644937107625,49.05996287,3125.0,3124.9,21.21491464]
[1644937107825,43.98423409,3125.0,3124.9,21.20857418]
[1644937108126,43.98423409,3125.0,3124.9,22.12666901]
[1644937108127,34.38912409,3125.0,3124.9,22.12666901]
[1644937108325,29.59139809,3125.0,3124.9,21.67066901]
[1644937108725,24.79352809,3125.0,3124.9,21.67066901]
[1644937108925,23.84025809,3125.0,3124.9,21.67066901]
[1644937109371,23.84025809,3125.0,3124.9,21.97066901]
[1644937109667,23.84025809,3125.0,3124.9,3.29066901]
[1644937109873,23.84025809,3125.0,3124.9,0.79784005]
[1644937110469,23.84025809,3125.0,3124.9,0.49784005]
[1644937110470,27.17790928,3125.0,3124.9,0.49784005]
[1644937111269,23.84025809,3125.0,3124.9,0.49784005]
[1644937111477,20.92706309,3125.0,3124.9,19.17784005]
[1644937111671,16.12948309,3125.0,3124.9,19.56284005]
[1644937111873,0.8375603,3125.0,3124.9,21.665]
[1644937112070,1.92273182,3125.9,3125.1,18.68]
[1644937112270,1.92273182,3125.9,3125.3,18.68]
[1644937112476,1.92273182,3125.9,3125.5,18.68]
[1644937112922,1.92273182,3125.9,3125.6,2.09951]
[1644937113322,5.26038301,3125.9,3125.6,2.09951]
[1644937113526,3.33765119,3125.7,3125.6,1.5190846]
[1644937114127,3.33765119,3125.7,3125.2,1.59959]
[1644937114324,3.33765119,3125.3,3124.9,0.00507316]
[1644937114522,3.33765119,3125.0,3124.9,0.00507316]
[1644937114723,3.33765119,3125.0,3124.9,0.48500166]
[1644937114922,1.92273182,3125.9,3124.9,0.64742474]
[1644937115127,3.33765119,3125.0,3124.9,0.64742474]
[1644937115323,3.33765119,3125.2,3124.9,0.64742474]
[1644937115523,3.33765119,3125.0,3124.9,0.64742474]
[1644937115724,3.33765119,3125.0,3124.9,1.12728474]
[1644937115924,3.33765119,3125.0,3124.9,1.56486166]
[1644937116568,3.33765119,3125.0,3124.9,1.58472316]
[1644937116772,3.33765119,3125.0,3124.9,1.10486316]
[1644937118671,3.33765119,3125.0,3124.9,0.30507316]
[1644937118872,3.33765119,3125.0,3124.9,0.3]
[1644937119073,6.9,3124.9,3124.4,0.25]
[1644937119274,3.33765119,3124.5,3123.4,6.00622226]
[1644937119472,3.33765119,3124.5,3123.2,0.5]
[1644937119473,3.33765119,3123.5,3123.3,0.1600434]
[1644937119672,3.33765119,3123.5,3123.4,0.80018]
[1644937119875,3.33765119,3123.5,3122.3,0.16714709]
[1644937120074,1.01771592,3123.8,3122.3,0.16714709]
[1644937120075,3.33765119,3122.4,3122.3,0.16714709]
[1644937121128,3.33765119,3122.4,3122.0,7.43]
[1644937121325,3.33765119,3122.1,3121.7,0.01064382]
[1644937121529,3.33765119,3122.1,3121.8,18.68]
[1644937121825,3.9085,3123.3,3122.2,0.24011]
[1644937122024,56.01322379,3123.3,3122.2,0.24011]
[1644937122424,57.16047978,3123.3,3122.3,0.16242308]
[1644937122625,54.37847978,3123.3,3122.3,0.16242308]
[1644937122828,54.37847978,3123.3,3122.5,0.80038]
[1644937123226,2.51579569,3122.6,3122.5,0.80038]
[1644937124069,2.51579569,3122.6,3122.5,1.10038]
[1644937124272,2.51579569,3122.7,3122.5,0.6]
[1644937124472,2.51579569,3122.7,3122.4,0.24011]
[1644937124673,2.51579569,3122.5,3121.7,1.64753284]
[1644937124871,54.37847978,3123.3,3121.6,1.0]
[1644937124872,2.51579569,3122.0,3121.6,1.0]
[1644937125073,2.51579569,3122.0,3121.4,3.20128]
[1644937125269,5.0,3123.0,3121.4,3.20128]
[1644937125481,56.47904978,3123.3,3121.2,0.25]
[1644937125482,0.95237907,3121.5,3121.2,0.25]
[1644937125673,0.95237907,3121.5,3121.0,8.59852981]
[1644937125674,2.51579569,3121.3,3121.0,8.59852981]
[1644937125870,0.95237907,3121.5,3121.0,8.59852981]
[1644937125871,2.51579569,3121.1,3121.0,8.59852981]
[1644937126274,2.51579569,3121.3,3121.0,8.09852981]
[1644937126473,2.51579569,3121.2,3121.0,8.26095289]
[1644937127172,2.51579569,3121.2,3121.0,8.56095289]
[1644937127572,1.14376801,3121.7,3121.0,8.56095289]
[1644937127573,2.51579569,3121.5,3121.0,8.56095289]
[1644937127830,15.1626,3122.4,3121.1,1.80072]
[1644937128233,2.51579569,3121.5,3121.2,0.16242308]
[1644937128632,10.93144333,3122.3,3121.2,0.16242308]
[1644937128633,2.51579569,3121.4,3121.2,0.16242308]
[1644937131238,2.51579569,3121.4,3121.1,0.00268532]
[1644937131239,1.11968656,3121.3,3121.1,0.00268532]
[1644937131669,12.2288575,3122.3,3121.1,0.00268532]
[1644937131869,12.2288575,3122.3,3121.1,7.43]
[1644937131870,2.51579569,3121.2,3121.1,7.43]
[1644937132869,3.40336024,3121.2,3121.1,7.43]
[1644937133469,3.40336024,3121.2,3121.0,0.002685]
[1644937133470,7.36011157,3121.2,3121.0,0.002685]
[1644937133673,3.5,3121.1,3120.2,0.7998]
[1644937133872,0.385,3121.0,3120.2,0.7998]
[1644937134470,3.54375359,3120.3,3120.2,0.7998]
[1644937134870,3.54375359,3120.3,3120.0,7.43]
[1644937135723,1.0279579,3120.3,3120.0,7.43213648]
[1644937135929,2.51579569,3120.1,3120.0,7.43213648]
[1644937136626,1.12297184,3120.8,3120.0,27.87242308]
[1644937136828,1.12297184,3120.8,3120.1,1.57431342]
[1644937137022,16.06609569,3121.2,3120.1,1.57431342]
[1644937137223,1.15342646,3121.3,3120.2,1.26339308]
[1644937137224,2.51579569,3120.5,3120.2,1.26339308]
[1644937137426,1.15342646,3121.3,3120.2,0.3]
[1644937137623,2.51579569,3120.4,3120.2,0.3]
[1644937137825,0.00552646,3121.3,3120.1,22.69630342]
[1644937138025,2.51579569,3121.0,3120.3,0.16242308]
[1644937138224,2.51579569,3121.0,3120.3,0.16523061]
[1644937138429,2.51579569,3121.0,3120.5,0.80089]
[1644937138624,0.00552646,3121.3,3120.5,1.40089]
[1644937138825,2.51579569,3120.6,3120.5,1.40089]
[1644937139073,2.51579569,3120.6,3120.4,1.60169]
[1644937139474,2.51579569,3120.6,3120.5,0.3]
[1644937139673,0.00552646,3121.3,3120.5,0.3]
[1644937139873,2.51579569,3120.9,3120.5,1.10083]
[1644937140076,2.51579569,3121.1,3120.5,0.3]
[1644937140276,0.00552646,3121.3,3120.5,1.3]
[1644937140476,0.00552646,3121.3,3120.5,0.3]
[1644937140675,0.00552646,3121.3,3120.6,0.48047]
[1644937140875,0.00552646,3121.3,3120.7,0.24025]
[1644937141078,0.00552646,3121.3,3120.9,1.60149]
[1644937141275,2.51579569,3121.0,3120.9,1.90149]
[1644937141479,0.00552646,3121.3,3120.9,20.58149]
[1644937141678,0.00552646,3121.3,3121.1,18.68]
[1644937141879,0.00552646,3121.3,3121.2,21.065]
[1644937142176,0.00552646,3121.3,3121.2,20.52742308]
[1644937142378,0.00552646,3121.3,3121.2,21.82742308]
[1644937142834,0.00552646,3121.3,3121.2,24.22885308]
[1644937143238,0.00552646,3121.3,3121.2,5.54885308]
[1644937143436,0.00552646,3121.3,3121.2,4.54885308]
[1644937143640,2.52132215,3121.3,3121.2,2.14742308]
[1644937143839,2.52132215,3121.3,3120.6,0.16242308]
[1644937144038,2.51579569,3120.7,3120.6,0.16242308]
[1644937144538,0.00552646,3121.3,3120.6,0.16242308]
[1644937144539,2.51579569,3120.8,3120.6,0.64289308]
[1644937145138,2.51579569,3120.8,3120.7,0.3]
[1644937145539,2.51579569,3120.8,3120.7,0.54024]
[1644937146038,2.51579569,3120.8,3120.7,0.70266308]
[1644937146441,2.51579569,3120.8,3120.7,0.40266308]
[1644937147071,2.51579569,3120.8,3120.7,0.24024]
[1644937147272,2.51579569,3120.8,3120.6,1.58138]
[1644937147273,2.51579569,3120.8,3120.6,0.48047]
[1644937147472,2.51579569,3120.8,3120.5,7.43]
[1644937147671,2.51579569,3120.6,3120.5,7.43]
[1644937148570,2.51579569,3120.6,3120.1,0.27982269]
[1644937148777,2.51579569,3120.2,3120.1,0.27982269]